[Event "Late-Titled-Tuesday-Blitz-January-23-2024"]
[Site "Chess.com"]
[Date "2024.01.23"]
[Round "3"]
[White "The_Straightforward_Rook"]
[Black "HanSchut"]
[Result "0-1"]
[WhiteElo "2461"]
[BlackElo "2263"]
[TimeControl "180+1"]
[EndTime "14:26:38 PST"]
[Termination "HanSchut won by resignation"]

1. e4 {[%clk 0:02:57.7]} 1... c5 {[%clk 0:02:58.1]} 2. c3 {[%clk 0:02:57.3]}
2... g6 {[%clk 0:02:57.6]} 3. d4 {[%clk 0:02:56.6]} 3... cxd4 {[%clk 0:02:58.5]}
4. cxd4 {[%clk 0:02:56.8]} 4... d5 {[%clk 0:02:58.8]} 5. e5 {[%clk 0:02:57.4]}
5... Nc6 {[%clk 0:02:58.8]} 6. Nf3 {[%clk 0:02:57]} 6... Bg4 {[%clk 0:02:58.7]}
7. Nbd2 {[%clk 0:02:55]} 7... a6 {[%clk 0:02:33.6]} 8. Bd3 {[%clk 0:02:51.8]}
8... Nh6 {[%clk 0:02:26.6]} 9. h3 {[%clk 0:02:48.9]} 9... Bf5 {[%clk 0:02:26.4]}
10. Be2 {[%clk 0:02:41.8]} 10... Qb6 {[%clk 0:02:19]} 11. Nb3 {[%clk 0:02:36.6]}
11... Be4 {[%clk 0:02:14.8]} 12. O-O {[%clk 0:02:32.8]} 12... Nf5 {[%clk
0:02:13.7]} 13. Be3 {[%clk 0:02:29.7]} 13... Nxe3 {[%clk 0:02:12.7]} 14. fxe3
{[%clk 0:02:30.6]} 14... Bh6 {[%clk 0:02:13.4]} 15. Qd2 {[%clk 0:02:23.9]} 15...
e6 {[%clk 0:01:55.2]} 16. Nc5 {[%clk 0:02:22.9]} 16... Bxf3 {[%clk 0:01:52]} 17.
Rxf3 {[%clk 0:02:21.4]} 17... Nxe5 {[%clk 0:01:49.2]} 18. dxe5 {[%clk
0:02:17.4]} 18... Qxc5 {[%clk 0:01:48.7]} 19. Rc1 {[%clk 0:02:15]} 19... Qb6
{[%clk 0:01:42.7]} 20. h4 {[%clk 0:01:58.9]} 20... O-O {[%clk 0:01:40.6]} 21. h5
{[%clk 0:01:58.5]} 21... d4 {[%clk 0:01:31.4]} 22. Bd3 {[%clk 0:01:11.1]} 22...
Bxe3+ {[%clk 0:01:27.5]} 23. Rxe3 {[%clk 0:01:11.4]} 23... dxe3 {[%clk
0:01:28.4]} 24. Qe2 {[%clk 0:01:12]} 24... Rad8 {[%clk 0:01:21.1]} 25. Rc4
{[%clk 0:00:59]} 25... Rxd3 {[%clk 0:00:59.2]} 26. Qxd3 {[%clk 0:00:54.3]} 26...
e2+ {[%clk 0:00:58.9]} 0-1

[Event "Late-Titled-Tuesday-Blitz-January-23-2024"]
[Site "Chess.com"]
[Date "2024.01.23"]
[Round "3"]
[White "AungTZ"]
[Black "ChessBrainiacOnTwitch"]
[Result "0-1"]
[WhiteElo "2098"]
[BlackElo "2788"]
[TimeControl "180+1"]
[EndTime "14:26:47 PST"]
[Termination "ChessBrainiacOnTwitch won on time"]

1. e4 {[%clk 0:03:00.9]} 1... c5 {[%clk 0:02:59.7]} 2. Nf3 {[%clk 0:02:57.7]}
2... d6 {[%clk 0:02:59.7]} 3. Bb5+ {[%clk 0:02:56.5]} 3... Nd7 {[%clk
0:02:59.9]} 4. O-O {[%clk 0:02:55.6]} 4... Nf6 {[%clk 0:02:59.1]} 5. Re1 {[%clk
0:02:54.5]} 5... Qc7 {[%clk 0:02:55.8]} 6. c3 {[%clk 0:02:53.4]} 6... a6 {[%clk
0:02:56.2]} 7. Bf1 {[%clk 0:02:52.9]} 7... g6 {[%clk 0:02:56.6]} 8. d4 {[%clk
0:02:52.3]} 8... cxd4 {[%clk 0:02:53.6]} 9. cxd4 {[%clk 0:02:51.6]} 9... Bg7
{[%clk 0:02:52.6]} 10. e5 {[%clk 0:02:45.3]} 10... Nd5 {[%clk 0:02:48.8]} 11.
Nc3 {[%clk 0:02:32.3]} 11... Nxc3 {[%clk 0:02:39.6]} 12. bxc3 {[%clk 0:02:32]}
12... dxe5 {[%clk 0:02:40.1]} 13. dxe5 {[%clk 0:02:27]} 13... Nxe5 {[%clk
0:02:41]} 14. Nxe5 {[%clk 0:02:25.5]} 14... Bxe5 {[%clk 0:02:41.9]} 15. Bh6
{[%clk 0:02:18.9]} 15... Bxh2+ {[%clk 0:02:35.7]} 16. Kh1 {[%clk 0:02:18.1]}
16... Bd6 {[%clk 0:02:36.6]} 17. Qd4 {[%clk 0:02:11.1]} 17... Rg8 {[%clk
0:02:29.2]} 18. Rad1 {[%clk 0:02:10.3]} 18... Be6 {[%clk 0:02:27.5]} 19. Be2
{[%clk 0:01:10.2]} 19... O-O-O {[%clk 0:02:26.1]} 20. Qa7 {[%clk 0:01:06.2]}
20... Qb8 {[%clk 0:02:19.8]} 21. Qb6 {[%clk 0:01:04.8]} 21... Qc7 {[%clk
0:02:03.5]} 22. Qa7 {[%clk 0:01:03.6]} 22... Qc5 {[%clk 0:02:00.8]} 23. Be3
{[%clk 0:00:44.7]} 23... Qxa7 {[%clk 0:02:00.3]} 24. Bxa7 {[%clk 0:00:45.2]}
24... Bc7 {[%clk 0:01:56.1]} 25. a4 {[%clk 0:00:37.6]} 25... Bd5 {[%clk
0:01:49.3]} 26. c4 {[%clk 0:00:26.6]} 26... Bc6 {[%clk 0:01:48.5]} 27. Ra1
{[%clk 0:00:20.4]} 27... e5 {[%clk 0:01:39.1]} 28. Bf3 {[%clk 0:00:11.5]} 28...
Bxf3 {[%clk 0:01:38.3]} 29. gxf3 {[%clk 0:00:11.9]} 29... Rd3 {[%clk 0:01:38.9]}
30. Kg2 {[%clk 0:00:11.8]} 30... f5 {[%clk 0:01:38.8]} 31. a5 {[%clk 0:00:03.1]}
31... Rc3 {[%clk 0:01:36.1]} 32. Bb6 {[%clk 0:00:02.8]} 32... Re8 {[%clk
0:01:34.7]} 0-1

[Event "Late-Titled-Tuesday-Blitz-January-23-2024"]
[Site "Chess.com"]
[Date "2024.01.23"]
[Round "3"]
[White "j_coca"]
[Black "chessprincesa1"]
[Result "1-0"]
[WhiteElo "2532"]
[BlackElo "2297"]
[TimeControl "180+1"]
[EndTime "14:26:47 PST"]
[Termination "j_coca won by checkmate"]

1. f4 {[%clk 0:02:58.1]} 1... d5 {[%clk 0:02:58.4]} 2. Nf3 {[%clk 0:02:56.3]}
2... Nf6 {[%clk 0:02:58.8]} 3. e3 {[%clk 0:02:55.5]} 3... Bg4 {[%clk 0:02:59.2]}
4. d4 {[%clk 0:02:55.6]} 4... h5 {[%clk 0:02:59]} 5. Bd3 {[%clk 0:02:55.9]} 5...
e6 {[%clk 0:02:57.9]} 6. Nbd2 {[%clk 0:02:55.3]} 6... c5 {[%clk 0:02:57.9]} 7.
c3 {[%clk 0:02:55.2]} 7... Nc6 {[%clk 0:02:57.7]} 8. O-O {[%clk 0:02:55]} 8...
h4 {[%clk 0:02:57.8]} 9. h3 {[%clk 0:02:54.9]} 9... Bh5 {[%clk 0:02:57.4]} 10.
Qe1 {[%clk 0:02:53.9]} 10... Bxf3 {[%clk 0:02:54.7]} 11. Rxf3 {[%clk 0:02:52.8]}
11... Be7 {[%clk 0:02:55]} 12. Qe2 {[%clk 0:02:52.5]} 12... Qc7 {[%clk
0:02:54.4]} 13. a3 {[%clk 0:02:53]} 13... O-O-O {[%clk 0:02:53.4]} 14. b4 {[%clk
0:02:53.1]} 14... c4 {[%clk 0:02:52.5]} 15. Bc2 {[%clk 0:02:53.4]} 15... Nh5
{[%clk 0:02:52.4]} 16. a4 {[%clk 0:02:52.3]} 16... Ng3 {[%clk 0:02:52.2]} 17.
Qe1 {[%clk 0:02:48.5]} 17... g5 {[%clk 0:02:52]} 18. Nf1 {[%clk 0:02:48.4]}
18... gxf4 {[%clk 0:02:43.7]} 19. exf4 {[%clk 0:02:45.3]} 19... Nxf1 {[%clk
0:02:37.7]} 20. Qxf1 {[%clk 0:02:45.2]} 20... Bf6 {[%clk 0:02:26.9]} 21. Kh1
{[%clk 0:02:42.5]} 21... Rhg8 {[%clk 0:02:24.9]} 22. Be3 {[%clk 0:02:42.2]}
22... Rg7 {[%clk 0:02:21.7]} 23. Qe2 {[%clk 0:02:42.7]} 23... Rdg8 {[%clk
0:02:21.4]} 24. Rf2 {[%clk 0:02:42.1]} 24... Rg3 {[%clk 0:02:11.6]} 25. Raf1
{[%clk 0:02:40.6]} 25... Ne7 {[%clk 0:02:04.1]} 26. Qd2 {[%clk 0:02:38.6]} 26...
Nf5 {[%clk 0:01:59.1]} 27. Bxf5 {[%clk 0:02:36.8]} 27... exf5 {[%clk 0:02:00]}
28. Re2 {[%clk 0:02:36.4]} 28... Qd6 {[%clk 0:01:34.8]} 29. Qe1 {[%clk
0:02:33.6]} 29... Bd8 {[%clk 0:00:58.9]} 30. Bg1 {[%clk 0:02:31.2]} 30... Qg6
{[%clk 0:00:54.9]} 31. Rff2 {[%clk 0:02:27.9]} 31... Bc7 {[%clk 0:00:51.3]} 32.
Bh2 {[%clk 0:02:26.6]} 32... Rd3 {[%clk 0:00:50.8]} 33. Re8+ {[%clk 0:02:21.6]}
33... Rxe8 {[%clk 0:00:44.9]} 34. Qxe8+ {[%clk 0:02:22.5]} 34... Bd8 {[%clk
0:00:44.9]} 35. Re2 {[%clk 0:02:18.2]} 35... Rxc3 {[%clk 0:00:40.7]} 36. Re7
{[%clk 0:02:16.7]} 36... Rc1+ {[%clk 0:00:33.8]} 37. Bg1 {[%clk 0:02:16.4]}
37... Qd6 {[%clk 0:00:29.2]} 38. Rxf7 {[%clk 0:02:13.4]} 38... c3 {[%clk
0:00:22.9]} 39. Qe3 {[%clk 0:02:08.7]} 39... Rc2 {[%clk 0:00:11.5]} 40. Qd3
{[%clk 0:02:08.8]} 40... Rc1 {[%clk 0:00:11.7]} 41. Qxf5+ {[%clk 0:02:08.9]}
41... Kb8 {[%clk 0:00:11.8]} 42. Rd7 {[%clk 0:02:09]} 42... Qf6 {[%clk
0:00:09.2]} 43. Qxd5 {[%clk 0:02:04.5]} 43... c2 {[%clk 0:00:08.4]} 44. Rxd8+
{[%clk 0:02:04.2]} 44... Kc7 {[%clk 0:00:07.4]} 45. Rd7+ {[%clk 0:02:01.7]}
45... Kc8 {[%clk 0:00:06.7]} 46. Qxb7# {[%clk 0:02:02]} 1-0

[Event "Late-Titled-Tuesday-Blitz-January-23-2024"]
[Site "Chess.com"]
[Date "2024.01.23"]
[Round "3"]
[White "Kombinator01"]
[Black "MajorCoast"]
[Result "1-0"]
[WhiteElo "2463"]
[BlackElo "2227"]
[TimeControl "180+1"]
[EndTime "14:26:48 PST"]
[Termination "Kombinator01 won by checkmate"]

1. e4 {[%clk 0:03:00.9]} 1... g6 {[%clk 0:02:58]} 2. d4 {[%clk 0:03:00.1]} 2...
c6 {[%clk 0:02:58.5]} 3. Nc3 {[%clk 0:02:59.7]} 3... d5 {[%clk 0:02:59.2]} 4. h3
{[%clk 0:02:57.1]} 4... dxe4 {[%clk 0:02:58.3]} 5. Nxe4 {[%clk 0:02:56.9]} 5...
Bg7 {[%clk 0:02:59.1]} 6. Nf3 {[%clk 0:02:55.4]} 6... Nf6 {[%clk 0:02:57.9]} 7.
Nxf6+ {[%clk 0:02:53.2]} 7... Bxf6 {[%clk 0:02:58.8]} 8. Bh6 {[%clk 0:02:52]}
8... Bf5 {[%clk 0:02:48.9]} 9. c3 {[%clk 0:02:49]} 9... Be4 {[%clk 0:02:47.9]}
10. Bd3 {[%clk 0:02:46.9]} 10... Bxd3 {[%clk 0:02:37.9]} 11. Qxd3 {[%clk
0:02:46.6]} 11... e5 {[%clk 0:02:38.5]} 12. O-O {[%clk 0:02:20.9]} 12... exd4
{[%clk 0:02:37.4]} 13. Rfe1+ {[%clk 0:02:20.4]} 13... Kd7 {[%clk 0:02:37.9]} 14.
Nxd4 {[%clk 0:02:13.7]} 14... Kc8 {[%clk 0:02:30.7]} 15. Qc4 {[%clk 0:01:56.2]}
15... Qd5 {[%clk 0:02:21.4]} 16. Qa4 {[%clk 0:01:44.7]} 16... Nd7 {[%clk
0:02:15.2]} 17. Rad1 {[%clk 0:01:43.2]} 17... Nc5 {[%clk 0:01:59.9]} 18. Qc2
{[%clk 0:01:22.2]} 18... Qh5 {[%clk 0:01:57.4]} 19. Bf4 {[%clk 0:01:13.6]} 19...
Bxd4 {[%clk 0:01:25.4]} 20. cxd4 {[%clk 0:01:07.9]} 20... Ne6 {[%clk 0:01:21.6]}
21. Be5 {[%clk 0:00:57.1]} 21... Rd8 {[%clk 0:01:18.5]} 22. d5 {[%clk
0:00:56.1]} 22... Ng5 {[%clk 0:00:52.1]} 23. dxc6 {[%clk 0:00:45.5]} 23... Rxd1
{[%clk 0:00:52.1]} 24. cxb7+ {[%clk 0:00:45]} 24... Kxb7 {[%clk 0:00:51.7]} 25.
Qc7+ {[%clk 0:00:35]} 25... Ka6 {[%clk 0:00:50.5]} 26. Qc6+ {[%clk 0:00:35.3]}
26... Ka5 {[%clk 0:00:50.1]} 27. Bc3# {[%clk 0:00:35.5]} 1-0

[Event "Late-Titled-Tuesday-Blitz-January-23-2024"]
[Site "Chess.com"]
[Date "2024.01.23"]
[Round "3"]
[White "Cluke86"]
[Black "SameerMujumdar"]
[Result "1-0"]
[WhiteElo "2266"]
[BlackElo "2438"]
[TimeControl "180+1"]
[EndTime "14:26:50 PST"]
[Termination "Cluke86 won by resignation"]

1. e4 {[%clk 0:03:00.9]} 1... c5 {[%clk 0:02:59]} 2. Nc3 {[%clk 0:03:00.4]} 2...
g6 {[%clk 0:02:58.8]} 3. f4 {[%clk 0:03:00.2]} 3... Bg7 {[%clk 0:02:58.9]} 4.
Nf3 {[%clk 0:03:00.9]} 4... Nc6 {[%clk 0:02:58.2]} 5. a4 {[%clk 0:03:01]} 5...
d6 {[%clk 0:02:58.3]} 6. Bb5 {[%clk 0:03:00.6]} 6... Bd7 {[%clk 0:02:55.5]} 7.
d3 {[%clk 0:03:00.6]} 7... Nf6 {[%clk 0:02:55.4]} 8. O-O {[%clk 0:03:00.2]} 8...
O-O {[%clk 0:02:55.2]} 9. Bxc6 {[%clk 0:02:59.6]} 9... Bxc6 {[%clk 0:02:55.1]}
10. Qe1 {[%clk 0:02:59.9]} 10... a6 {[%clk 0:02:49.3]} 11. a5 {[%clk 0:02:59.8]}
11... e6 {[%clk 0:02:27.3]} 12. f5 {[%clk 0:02:38.8]} 12... exf5 {[%clk
0:02:26.4]} 13. Qh4 {[%clk 0:02:38.9]} 13... fxe4 {[%clk 0:02:21.8]} 14. dxe4
{[%clk 0:02:35.8]} 14... Nxe4 {[%clk 0:02:16.2]} 15. Qh3 {[%clk 0:02:24.4]}
15... Nxc3 {[%clk 0:02:13.8]} 16. bxc3 {[%clk 0:02:24.8]} 16... Qd7 {[%clk
0:01:49.8]} 17. Qh4 {[%clk 0:02:16]} 17... Rae8 {[%clk 0:01:47.6]} 18. Bh6
{[%clk 0:02:14.2]} 18... Bxf3 {[%clk 0:01:42.8]} 19. Rxf3 {[%clk 0:02:13.5]}
19... f5 {[%clk 0:01:31.4]} 20. Rd1 {[%clk 0:02:07.6]} 20... Re4 {[%clk
0:01:28.6]} 21. Qh3 {[%clk 0:01:58.5]} 21... Qe7 {[%clk 0:01:28.4]} 22. Bf4
{[%clk 0:01:54.1]} 22... Re1+ {[%clk 0:01:21.6]} 23. Rf1 {[%clk 0:01:53.4]}
23... Rxf1+ {[%clk 0:01:19.8]} 24. Kxf1 {[%clk 0:01:53.9]} 24... Be5 {[%clk
0:01:16.7]} 25. Qe3 {[%clk 0:01:36]} 25... Re8 {[%clk 0:01:15.2]} 26. Bg5 {[%clk
0:01:36.4]} 26... Bf6 {[%clk 0:01:12.8]} 27. Qxe7 {[%clk 0:01:34.4]} 27... Bxe7
{[%clk 0:01:13.7]} 28. Bxe7 {[%clk 0:01:33.8]} 28... Rxe7 {[%clk 0:01:13]} 29.
Rxd6 {[%clk 0:01:34.3]} 29... Re3 {[%clk 0:00:54.4]} 30. Rd8+ {[%clk 0:01:29.7]}
30... Kf7 {[%clk 0:00:54.2]} 31. Rd7+ {[%clk 0:01:30.1]} 31... Re7 {[%clk
0:00:54.6]} 32. Rd5 {[%clk 0:01:29.8]} 32... Rc7 {[%clk 0:00:55.1]} 33. c4
{[%clk 0:01:29.7]} 33... Ke6 {[%clk 0:00:54.8]} 34. Ke2 {[%clk 0:01:28.6]} 34...
h5 {[%clk 0:00:54]} 35. h4 {[%clk 0:01:28]} 35... Rc6 {[%clk 0:00:35.9]} 36. Kf3
{[%clk 0:01:26.5]} 36... Kf6 {[%clk 0:00:34.8]} 37. Kf4 {[%clk 0:01:24.4]} 37...
Rc7 {[%clk 0:00:32.4]} 38. Rd6+ {[%clk 0:01:24.1]} 38... Kf7 {[%clk 0:00:32.1]}
39. Kg5 {[%clk 0:01:23.2]} 39... Rd7 {[%clk 0:00:28.5]} 40. Rxd7+ {[%clk
0:01:22.6]} 1-0

[Event "Late-Titled-Tuesday-Blitz-January-23-2024"]
[Site "Chess.com"]
[Date "2024.01.23"]
[Round "3"]
[White "Grandmaster2B"]
[Black "EvilMorty23"]
[Result "1-0"]
[WhiteElo "2803"]
[BlackElo "2509"]
[TimeControl "180+1"]
[EndTime "14:26:53 PST"]
[Termination "Grandmaster2B won by checkmate"]

1. d4 {[%clk 0:03:00.9]} 1... Nf6 {[%clk 0:02:59.8]} 2. c4 {[%clk 0:03:00.6]}
2... e6 {[%clk 0:03:00.1]} 3. g3 {[%clk 0:03:00.9]} 3... d5 {[%clk 0:02:59.1]}
4. Bg2 {[%clk 0:03:01.2]} 4... Bb4+ {[%clk 0:02:56.8]} 5. Bd2 {[%clk 0:03:00.5]}
5... Be7 {[%clk 0:02:56.9]} 6. Nf3 {[%clk 0:03:00.6]} 6... O-O {[%clk
0:02:57.1]} 7. O-O {[%clk 0:03:01.4]} 7... c6 {[%clk 0:02:57.4]} 8. Qc2 {[%clk
0:03:01.4]} 8... b6 {[%clk 0:02:57.7]} 9. Bf4 {[%clk 0:02:50.5]} 9... Nbd7
{[%clk 0:02:57.2]} 10. Nbd2 {[%clk 0:02:50.3]} 10... Nh5 {[%clk 0:02:47.6]} 11.
e3 {[%clk 0:02:50.2]} 11... Nxf4 {[%clk 0:02:45.8]} 12. exf4 {[%clk 0:02:49.5]}
12... Ba6 {[%clk 0:02:43.6]} 13. Rfc1 {[%clk 0:02:48.2]} 13... dxc4 {[%clk
0:02:33.4]} 14. Nxc4 {[%clk 0:02:49.1]} 14... Rc8 {[%clk 0:02:31.5]} 15. h4
{[%clk 0:02:47.1]} 15... c5 {[%clk 0:02:31.3]} 16. Qa4 {[%clk 0:02:47.1]} 16...
Bb7 {[%clk 0:02:24.2]} 17. Qxa7 {[%clk 0:02:45.7]} 17... Qc7 {[%clk 0:02:21.1]}
18. Qa3 {[%clk 0:02:32]} 18... Nf6 {[%clk 0:01:47.6]} 19. Qb3 {[%clk 0:02:16.5]}
19... cxd4 {[%clk 0:01:40.5]} 20. Nxd4 {[%clk 0:02:13.1]} 20... Bxg2 {[%clk
0:01:38.6]} 21. Kxg2 {[%clk 0:02:14]} 21... Bc5 {[%clk 0:01:35.1]} 22. Ne5
{[%clk 0:02:05.3]} 22... Qb7+ {[%clk 0:01:31.3]} 23. Qf3 {[%clk 0:02:03.2]}
23... Ne4 {[%clk 0:01:29.3]} 24. Ndc6 {[%clk 0:01:43.2]} 24... f5 {[%clk
0:01:28.3]} 25. Rc2 {[%clk 0:01:34.4]} 25... Bxf2 {[%clk 0:01:04.1]} 26. Rxf2
{[%clk 0:01:27.4]} 26... Nxf2 {[%clk 0:00:59.3]} 27. Kxf2 {[%clk 0:01:28.3]}
27... Rfd8 {[%clk 0:00:56.2]} 28. Nxd8 {[%clk 0:01:17.4]} 28... Rc2+ {[%clk
0:00:55.3]} 29. Ke3 {[%clk 0:01:17.9]} 29... Qc7 {[%clk 0:00:41.9]} 30. Nxe6
{[%clk 0:01:08.4]} 30... Qc8 {[%clk 0:00:41.6]} 31. Qd5 {[%clk 0:01:06.9]} 31...
Rc3+ {[%clk 0:00:36.1]} 32. bxc3 {[%clk 0:00:59.5]} 32... Qxc3+ {[%clk 0:00:37]}
33. Nd3 {[%clk 0:00:59.1]} 33... h6 {[%clk 0:00:34.2]} 34. Ng5+ {[%clk
0:00:58.7]} 34... Kh8 {[%clk 0:00:34.1]} 35. Qd8# {[%clk 0:00:58.6]} 1-0

[Event "Late-Titled-Tuesday-Blitz-January-23-2024"]
[Site "Chess.com"]
[Date "2024.01.23"]
[Round "3"]
[White "yobdc"]
[Black "kuli4ik"]
[Result "1-0"]
[WhiteElo "2541"]
[BlackElo "2903"]
[TimeControl "180+1"]
[EndTime "14:26:55 PST"]
[Termination "yobdc won by resignation"]

1. d4 {[%clk 0:02:56.6]} 1... g6 {[%clk 0:02:53.6]} 2. c4 {[%clk 0:02:55.4]}
2... Bg7 {[%clk 0:02:53.9]} 3. Nf3 {[%clk 0:02:55.2]} 3... d6 {[%clk 0:02:53.8]}
4. Nc3 {[%clk 0:02:55.3]} 4... e5 {[%clk 0:02:52.3]} 5. dxe5 {[%clk 0:02:51.6]}
5... dxe5 {[%clk 0:02:52.4]} 6. Qxd8+ {[%clk 0:02:52.5]} 6... Kxd8 {[%clk
0:02:53.1]} 7. Bg5+ {[%clk 0:02:52.1]} 7... f6 {[%clk 0:02:48.9]} 8. O-O-O+
{[%clk 0:02:52.3]} 8... Bd7 {[%clk 0:02:41.8]} 9. Bd2 {[%clk 0:02:52.2]} 9...
Nc6 {[%clk 0:02:25.7]} 10. g3 {[%clk 0:02:52.1]} 10... Kc8 {[%clk 0:02:14.5]}
11. h4 {[%clk 0:02:49.7]} 11... h5 {[%clk 0:02:12.6]} 12. Bg2 {[%clk 0:02:46.6]}
12... Nh6 {[%clk 0:02:10.3]} 13. Bxh6 {[%clk 0:02:36.2]} 13... Bxh6+ {[%clk
0:02:09.3]} 14. e3 {[%clk 0:02:36.3]} 14... Rd8 {[%clk 0:02:03.1]} 15. Nd5
{[%clk 0:02:33.8]} 15... f5 {[%clk 0:01:41.6]} 16. Ng5 {[%clk 0:02:27.2]} 16...
Bxg5 {[%clk 0:01:31.9]} 17. hxg5 {[%clk 0:02:27.3]} 17... e4 {[%clk 0:01:27.2]}
18. g4 {[%clk 0:02:22.8]} 18... hxg4 {[%clk 0:01:02.7]} 19. Rh7 {[%clk
0:02:22.4]} 19... Ne5 {[%clk 0:01:01.6]} 20. Bf1 {[%clk 0:02:07.7]} 20... c6
{[%clk 0:00:38.2]} 21. Nf6 {[%clk 0:02:02.3]} 21... Rb8 {[%clk 0:00:16]} 22. Re7
{[%clk 0:01:56.5]} 22... Nf3 {[%clk 0:00:09.7]} 23. Nxd7 {[%clk 0:01:49.7]}
23... Ra8 {[%clk 0:00:09.8]} 24. Rg7 {[%clk 0:01:42.7]} 24... Nxg5 {[%clk
0:00:10.1]} 25. Nb6+ {[%clk 0:01:35.5]} 25... axb6 {[%clk 0:00:09.8]} 26. Rxd8+
{[%clk 0:01:36]} 26... Kxd8 {[%clk 0:00:10]} 27. Rg8+ {[%clk 0:01:36.6]} 27...
Kc7 {[%clk 0:00:10.3]} 28. Rxa8 {[%clk 0:01:37.5]} 28... Nf7 {[%clk 0:00:09.6]}
29. Rg8 {[%clk 0:01:37]} 29... Ne5 {[%clk 0:00:10]} 30. Be2 {[%clk 0:01:36.8]}
30... Kd6 {[%clk 0:00:09.4]} 31. Rg7 {[%clk 0:01:35]} 31... Kc5 {[%clk
0:00:05.4]} 32. b3 {[%clk 0:01:32.3]} 32... Kb4 {[%clk 0:00:05]} 33. Kc2 {[%clk
0:01:30.3]} 33... Kc5 {[%clk 0:00:05]} 34. Rxb7 {[%clk 0:01:30.1]} 1-0

[Event "Late-Titled-Tuesday-Blitz-January-23-2024"]
[Site "Chess.com"]
[Date "2024.01.23"]
[Round "3"]
[White "Bigfish1995"]
[Black "mjelcic"]
[Result "1-0"]
[WhiteElo "3128"]
[BlackElo "2221"]
[TimeControl "180+1"]
[EndTime "14:26:56 PST"]
[Termination "Bigfish1995 won by resignation"]

1. e4 {[%clk 0:03:00.9]} 1... c5 {[%clk 0:02:59.1]} 2. c3 {[%clk 0:02:56.4]}
2... g6 {[%clk 0:02:57.8]} 3. d4 {[%clk 0:02:51.1]} 3... cxd4 {[%clk 0:02:58.7]}
4. cxd4 {[%clk 0:02:46.5]} 4... d5 {[%clk 0:02:58.4]} 5. e5 {[%clk 0:02:37.8]}
5... Nc6 {[%clk 0:02:58.3]} 6. Nc3 {[%clk 0:02:36.8]} 6... Nh6 {[%clk
0:02:56.9]} 7. Bb5 {[%clk 0:02:31.7]} 7... Bg7 {[%clk 0:02:51.3]} 8. Nge2 {[%clk
0:02:30.6]} 8... O-O {[%clk 0:02:50.3]} 9. O-O {[%clk 0:02:27.4]} 9... f6 {[%clk
0:02:24.4]} 10. exf6 {[%clk 0:02:22.3]} 10... exf6 {[%clk 0:02:14.4]} 11. Nf4
{[%clk 0:02:06]} 11... Nf5 {[%clk 0:01:54.5]} 12. Be3 {[%clk 0:02:04.6]} 12...
Nxe3 {[%clk 0:01:45.1]} 13. fxe3 {[%clk 0:02:05.5]} 13... Ne7 {[%clk 0:01:43.9]}
14. Qf3 {[%clk 0:02:04]} 14... a6 {[%clk 0:01:37.2]} 15. Ba4 {[%clk 0:02:02.5]}
15... b5 {[%clk 0:01:36]} 16. Bb3 {[%clk 0:02:01.4]} 16... Kh8 {[%clk
0:01:28.5]} 17. Ncxd5 {[%clk 0:01:58.2]} 17... Bb7 {[%clk 0:01:24.5]} 18. e4
{[%clk 0:01:12.4]} 18... Qd6 {[%clk 0:01:05.4]} 19. Nxe7 {[%clk 0:01:09.8]}
19... Qxe7 {[%clk 0:01:06.3]} 20. Nxg6+ {[%clk 0:01:09.4]} 20... hxg6 {[%clk
0:01:01.7]} 21. Qh3+ {[%clk 0:01:09.5]} 21... Bh6 {[%clk 0:01:00.9]} 22. Qxh6+
{[%clk 0:01:09.6]} 22... Qh7 {[%clk 0:01:00.5]} 23. Qxh7+ {[%clk 0:01:08.7]}
23... Kxh7 {[%clk 0:01:01.4]} 24. d5 {[%clk 0:01:04.6]} 24... Rae8 {[%clk
0:00:56.1]} 25. Rac1 {[%clk 0:01:04.9]} 25... Re7 {[%clk 0:00:47.7]} 26. d6
{[%clk 0:00:58.9]} 26... Rg7 {[%clk 0:00:44.6]} 27. e5 {[%clk 0:00:57.8]} 27...
f5 {[%clk 0:00:29.9]} 28. e6 {[%clk 0:00:58]} 1-0

[Event "Late-Titled-Tuesday-Blitz-January-23-2024"]
[Site "Chess.com"]
[Date "2024.01.23"]
[Round "3"]
[White "djano"]
[Black "Herman-NY"]
[Result "1-0"]
[WhiteElo "2690"]
[BlackElo "2472"]
[TimeControl "180+1"]
[EndTime "14:26:56 PST"]
[Termination "djano won on time"]

1. e4 {[%clk 0:03:00.9]} 1... e5 {[%clk 0:03:00.3]} 2. Nf3 {[%clk 0:02:55.3]}
2... Nc6 {[%clk 0:03:00.2]} 3. Bc4 {[%clk 0:02:54.7]} 3... Nf6 {[%clk
0:02:59.8]} 4. d4 {[%clk 0:02:53.5]} 4... exd4 {[%clk 0:02:59.4]} 5. Ng5 {[%clk
0:02:54]} 5... d5 {[%clk 0:02:22.1]} 6. exd5 {[%clk 0:02:54.9]} 6... Na5 {[%clk
0:02:22.2]} 7. Qxd4 {[%clk 0:02:52.4]} 7... Nxc4 {[%clk 0:02:20.3]} 8. Qxc4
{[%clk 0:02:53.3]} 8... Qxd5 {[%clk 0:02:07.9]} 9. Qe2+ {[%clk 0:02:52.7]} 9...
Be7 {[%clk 0:01:50.5]} 10. O-O {[%clk 0:02:52.6]} 10... Bg4 {[%clk 0:01:24.6]}
11. f3 {[%clk 0:02:47.7]} 11... Bh5 {[%clk 0:01:10.6]} 12. Nc3 {[%clk
0:02:39.2]} 12... Qd7 {[%clk 0:00:40.7]} 13. Rd1 {[%clk 0:02:31.3]} 13... Qc6
{[%clk 0:00:29.2]} 14. Kh1 {[%clk 0:02:02.1]} 14... Kf8 {[%clk 0:00:22.7]} 15.
Bf4 {[%clk 0:01:57.7]} 15... Re8 {[%clk 0:00:21.9]} 16. Qb5 {[%clk 0:01:51.7]}
16... h6 {[%clk 0:00:15.3]} 17. Qxc6 {[%clk 0:01:48.9]} 17... bxc6 {[%clk
0:00:16.2]} 18. Nh3 {[%clk 0:01:48.1]} 18... Rc8 {[%clk 0:00:11.8]} 19. Nf2
{[%clk 0:01:44]} 19... g5 {[%clk 0:00:11]} 20. Be3 {[%clk 0:01:43]} 20... Bg6
{[%clk 0:00:10.3]} 21. Rd2 {[%clk 0:01:41.7]} 21... Bd6 {[%clk 0:00:07.6]} 22.
Bxa7 {[%clk 0:01:39]} 22... Nh5 {[%clk 0:00:06.3]} 23. g3 {[%clk 0:01:37.4]}
23... Kg7 {[%clk 0:00:04]} 24. Bd4+ {[%clk 0:01:37]} 24... f6 {[%clk 0:00:04.1]}
25. Nce4 {[%clk 0:01:36]} 25... Be7 {[%clk 0:00:03.4]} 26. Bc5 {[%clk
0:01:34.5]} 26... Bxc5 {[%clk 0:00:02.9]} 27. Nxc5 {[%clk 0:01:35.4]} 27... Rhe8
{[%clk 0:00:02.6]} 28. Rad1 {[%clk 0:01:28.6]} 28... Kg8 {[%clk 0:00:03]} 29.
Kg2 {[%clk 0:01:28.4]} 29... Ng7 {[%clk 0:00:03.4]} 30. Ng4 {[%clk 0:01:28.6]}
30... Rf8 {[%clk 0:00:01.3]} 31. Nxh6+ {[%clk 0:01:28.4]} 31... Kh7 {[%clk
0:00:01.3]} 32. Ng4 {[%clk 0:01:28.7]} 32... Nf5 {[%clk 0:00:02]} 33. Nd7 {[%clk
0:01:26.9]} 1-0